[Event "AUT-ch Open 2020"]
[Site "Graz"]
[Date "2020.02.15"]
[Round "2.18"]
[White "Tisaj, Domen"]
[Black "Adamczyk, Zuzanna"]
[Result "1-0"]
[ECO "D12"]
[WhiteElo "2245"]
[BlackElo "1959"]
[Annotator "ChessBase"]
[PlyCount "83"]
[EventDate "2020.02.14"]
[EventType "swiss"]
[EventCountry "AUT"]
[SourceTitle "playchess.com"]
[Source "ChessBase"]
[SourceQuality "1"]
[TimeControl "40/5400+30:1800+30"]

1. Nf3 {[%emt 0:00:00]} Nf6 {[%emt 0:05:32]} 2. d4 {[%emt 0:00:00]} d5 {[%emt 0:01:00]} 3. e3 {[%emt 0:00:26]} Bf5 {[%emt 0:01:11]} 4. Be2 {[%emt 0:02:26]} e6 {[%emt 0:01:17]} 5. O-O {[%emt 0:00:19]} Be7 {[%emt 0:02:05]} 6. c4 {[%emt 0:00:59]} c6 {[%emt 0:00:51]} 7. Nc3 {[%emt 0:00:13]} Nbd7 {[%emt 0:01:25]} 8. b3 {[%emt 0:00:27]} Ne4 {[%emt 0:04:35]} 9. Bb2 {[%emt 0:00:52]} O-O {[%emt 0:00:37]} 10. Bd3 {[%emt 0:01:15]} Bg6 {[%emt 0:07:18]} 11. Qc2 {[%emt 0:00:56]} f5 {[%emt 0:01:46]} 12. Ne2 {[%emt 0:03:59]} Bf7 {[%emt 0:08:45]} 13. Rac1 {[%emt 0:00:40]} Bd6 {[%emt 0:02:50]} 14. Ne5 {[%emt 0:01:04]} Nxe5 {[%emt 0:15:54]} 15. dxe5 {[%emt 0:00:33]} Be7 {[%emt 0:01:04]} 16. Nd4 {[%emt 0:05:47]} Rc8 {[%emt 0:02:59]} 17. Qe2 {[%emt 0:02:56]} Qe8 {[%emt 0:07:11]} 18. cxd5 {[%emt 0:10:56]} cxd5 {[%emt 0:04:13]} 19. Bb5 {[%emt 0:00:43]} Qd8 {[%emt 0:00:56]} 20. Rxc8 {[%emt 0:00:09]} Qxc8 {[%emt 0:00:14]} 21. Rc1 {[%emt 0:00:04]} Qd8 {[%emt 0:01:20]} 22. Qc2 {[%emt 0:00:32]} a6 {[%emt 0:02:39]} 23. Be2 {[%emt 0:00:34]} Qa5 {[%emt 0:13:31]} 24. a3 {[%emt 0:00:45]} h6 {[%emt 0:07:39]} 25. b4 {[%emt 0:01:33]} Qb6 {[%emt 0:01:11]} 26. Nb3 {[%emt 0:11:14]} Be8 {[%emt 0:01:36]} 27. Na5 {[%emt 0:00:57]} Qa7 {[%emt 0:02:09]} 28. Bd4 {[%emt 0:00:09]} Qa8 {[%emt 0:00:58]} 29. f3 {[%emt 0:03:28]} Ng5 {[%emt 0:00:39]} 30. Qc7 {[%emt 0:00:13]} Rf7 {[%emt 0:00:21]} 31. Qc8 {[%emt 0:10:20]} Qxc8 {[%emt 0:00:07]} 32. Rxc8 {[%emt 0:00:07]} Kf8 {[%emt 0:00:48]} 33. f4 {[%emt 0:00:21]} Ne4 {[%emt 0:00:58]} 34. Bh5 {[%emt 0:00:09]} b5 {[%emt 0:00:32]} 35. Bxf7 {[%emt 0:00:30]} Kxf7 {[%emt 0:00:14]} 36. Rc7 {[%emt 0:42:24]} Kf8 {[%emt 0:00:26]} 37. Nc6 {[%emt 0:00:00]} Bxc6 {[%emt 0:00:44]} 38. Rxc6 {[%emt 0:00:00]} Nd2 {[%emt 0:00:25]} 39. Rxe6 {[%emt 0:00:00]} Nb3 {[%emt 0:00:44]} 40. Rxa6 {[%emt 0:00:00]} Nxd4 {[%emt 0:00:21]} 41. exd4 {[%emt 0:00:00]} Bd8 {[%emt 0:30:15]} 42. Rd6 {[%emt 0:00:00]} 1-0

[Event "AUT-ch Open 2020"]
[Site "Graz"]
[Date "2020.02.15"]
[Round "2.19"]
[White "Molnar, Bela"]
[Black "Horvath, Dominik"]
[Result "1/2-1/2"]
[ECO "B30"]
[WhiteElo "2312"]
[BlackElo "2450"]
[Annotator "ChessBase"]
[PlyCount "58"]
[EventDate "2020.02.14"]
[EventType "swiss"]
[EventCountry "AUT"]
[SourceTitle "playchess.com"]
[Source "ChessBase"]
[SourceQuality "1"]
[TimeControl "40/5400+30:1800+30"]

1. e4 {[%emt 0:04:07]} c5 {[%emt 0:00:00]} 2. Nf3 {[%emt 0:00:31]} Nc6 {[%emt 0:00:00]} 3. Nc3 {[%emt 0:01:22]} e6 {[%emt 0:00:00]} 4. g3 {[%emt 0:00:12]} d5 {[%emt 0:03:06]} 5. d3 {[%emt 0:00:48]} Nf6 {[%emt 0:01:49]} 6. Bg5 {[%emt 0:02:26]} Be7 {[%emt 0:03:47]} 7. Bg2 {[%emt 0:03:08]} h6 {[%emt 0:01:43]} 8. Bd2 {[%emt 0:00:36]} d4 {[%emt 0:04:43]} 9. Ne2 {[%emt 0:00:34]} e5 {[%emt 0:00:06]} 10. O-O {[%emt 0:00:54]} g5 {[%emt 0:02:45]} 11. Ne1 {[%emt 0:00:31]} g4 {[%emt 0:08:44]} 12. c3 {[%emt 0:01:57]} Be6 {[%emt 0:03:36]} 13. a3 {[%emt 0:02:52]} b5 {[%emt 0:07:05]} 14. cxd4 {[%emt 0:00:30]} cxd4 {[%emt 0:04:13]} 15. b4 {[%emt 0:06:06]} Nd7 {[%emt 0:06:58]} 16. f4 {[%emt 0:09:06]} f6 {[%emt 0:07:46]} 17. Nc1 {[%emt 0:10:09]} a5 {[%emt 0:01:23]} 18. bxa5 {[%emt 0:01:51]} Nxa5 {[%emt 0:03:55]} 19. Nc2 {[%emt 0:01:49]} Nc6 20. f5 {[%emt 0:03:38]} Bf7 {[%emt 0:05:12]} 21. Qxg4 {[%emt 0:00:10]} h5 {[%emt 0:04:47]} 22. Qh4 {[%emt 0:14:21]} Nc5 {[%emt 0:01:23]} 23. Rb1 {[%emt 0:01:12]} Rb8 {[%emt 0:01:20]} 24. Bf3 {[%emt 0:00:17]} Kd7 {[%emt 0:01:28]} 25. Bd1 {[%emt 0:04:56]} Na4 {[%emt 0:02:20]} 26. Ne2 {[%emt 0:01:07]} Nc5 {[%emt 0:04:24]} 27. Nc1 {[%emt 0:01:12]} Na4 {[%emt 0:00:54]} 28. Ne2 {[%emt 0:00:28]} Nc5 {[%emt 0:01:49]} 29. Nc1 {[%emt 0:00:37]} Na4 1/2-1/2

[Event "AUT-ch Open 2020"]
[Site "Graz"]
[Date "2020.02.15"]
[Round "2.19"]
[White "Moscicka, Pola"]
[Black "Lodici, Lorenzo"]
[Result "0-1"]
[ECO "D30"]
[WhiteElo "1948"]
[BlackElo "2492"]
[Annotator "ChessBase"]
[PlyCount "94"]
[EventDate "2020.02.14"]
[EventType "swiss"]
[EventCountry "AUT"]
[SourceTitle "playchess.com"]
[Source "ChessBase"]
[SourceQuality "1"]
[TimeControl "40/5400+30:1800+30"]

1. d4 {[%emt 0:00:00]} Nf6 {[%emt 0:00:00]} 2. c4 {[%emt 0:00:00]} e6 {[%emt 0:00:00]} 3. g3 {[%emt 0:00:00]} d5 {[%emt 0:00:05]} 4. Nf3 {[%emt 0:00:00]} Bb4+ {[%emt 0:00:25]} 5. Bd2 {[%emt 0:00:34]} Bd6 {[%emt 0:00:05]} 6. Bg2 {[%emt 0:00:40]} O-O {[%emt 0:00:14]} 7. Qc2 {[%emt 0:00:21]} c6 {[%emt 0:00:44]} 8. O-O {[%emt 0:02:11]} Nbd7 {[%emt 0:00:05]} 9. b3 {[%emt 0:08:06]} Ne4 {[%emt 0:04:17]} 10. Nc3 {[%emt 0:02:46]} Nxd2 {[%emt 0:02:41]} 11. Qxd2 {[%emt 0:01:01]} b6 {[%emt 0:01:57]} 12. a3 {[%emt 0:10:54]} Ba6 {[%emt 0:09:00]} 13. Qa2 {[%emt 0:00:57]} Rc8 {[%emt 0:01:47]} 14. e4 {[%emt 0:04:46]} dxc4 {[%emt 0:02:00]} 15. bxc4 {[%emt 0:00:17]} e5 {[%emt 0:01:07]} 16. Rfd1 {[%emt 0:03:41]} Qe7 {[%emt 0:12:12]} 17. Bh3 {[%emt 0:04:24]} exd4 {[%emt 0:01:47]} 18. Nxd4 {[%emt 0:02:19]} g6 {[%emt 0:01:15]} 19. Rac1 {[%emt 0:05:23]} Rfd8 {[%emt 0:04:11]} 20. f4 {[%emt 0:05:38]} Bc5 {[%emt 0:05:19]} 21. Kh1 {[%emt 0:03:25]} Rc7 {[%emt 0:02:32]} 22. Ndb5 {[%emt 0:07:38]} cxb5 {[%emt 0:06:35]} 23. Nd5 {[%emt 0:03:51]} Qd6 {[%emt 0:00:11]} 24. e5 {[%emt 0:11:47]} Nxe5 {[%emt 0:06:07]} 25. fxe5 {[%emt 0:00:08]} Qxe5 {[%emt 0:00:31]} 26. Nxc7 {[%emt 0:05:46]} Qxc7 {[%emt 0:00:02]} 27. cxb5 {[%emt 0:00:30]} Bxb5 {[%emt 0:00:03]} 28. Bg2 {[%emt 0:01:13]} Re8 {[%emt 0:04:23]} 29. Re1 {[%emt 0:00:23]} Rf8 {[%emt 0:03:05]} 30. a4 {[%emt 0:01:43]} Bd7 {[%emt 0:05:20]} 31. Bd5 {[%emt 0:01:10]} Bf5 {[%emt 0:03:05]} 32. Qc4 {[%emt 0:03:54]} Kg7 {[%emt 0:01:46]} 33. Rf1 {[%emt 0:04:44]} f6 {[%emt 0:03:34]} 34. g4 {[%emt 0:01:13]} Bc8 {[%emt 0:01:43]} 35. g5 {[%emt 0:02:03]} Bf5 {[%emt 0:00:40]} 36. Rce1 {[%emt 0:01:16]} fxg5 {[%emt 0:00:50]} 37. Qc3+ {[%emt 0:00:25]} Kh6 {[%emt 0:00:47]} 38. h4 {[%emt 0:00:55]} Qd8 {[%emt 0:01:48]} 39. Qc4 {[%emt 0:02:01]} gxh4 {[%emt 0:01:11]} 40. Re5 {[%emt 0:01:14]} Qg5 {[%emt 0:01:19]} 41. Bg2 {[%emt 0:07:26]} Qg3 {[%emt 0:02:53]} 42. Qc1+ {[%emt 0:03:38]} Qg5 {[%emt 0:01:45]} 43. Rf4 {[%emt 0:00:41]} Bf2 {[%emt 0:02:01]} 44. Qa3 {[%emt 0:06:35]} Qxf4 {[%emt 0:00:37]} 45. Qxf8+ {[%emt 0:00:07]} Kh5 {[%emt 0:00:07]} 46. Re7 {[%emt 0:01:45]} Qc1+ {[%emt 0:00:09]} 47. Kh2 {[%emt 0:00:03]} Bg3# {[%emt 0:00:39]} 0-1

[Event "AUT-ch Open 2020"]
[Site "Graz"]
[Date "2020.02.15"]
[Round "2.20"]
[White "Kilgus, Georg"]
[Black "Danner, Georg"]
[Result "1-0"]
[ECO "A43"]
[WhiteElo "2450"]
[BlackElo "2295"]
[Annotator "ChessBase"]
[PlyCount "83"]
[EventDate "2020.02.14"]
[EventType "swiss"]
[EventCountry "AUT"]
[SourceTitle "playchess.com"]
[Source "ChessBase"]
[SourceQuality "1"]
[TimeControl "40/5400+30:1800+30"]

1. d4 {[%emt 0:00:00]} c5 {[%emt 0:00:00]} 2. d5 {[%emt 0:00:00]} g6 {[%emt 0:00:00]} 3. e4 {[%emt 0:00:00]} Bg7 {[%emt 0:00:00]} 4. c4 {[%emt 0:00:00]} d6 {[%emt 0:00:00]} 5. Nc3 {[%emt 0:00:58]} Nf6 {[%emt 0:01:20]} 6. Bd3 {[%emt 0:00:04]} O-O {[%emt 0:00:17]} 7. Nge2 {[%emt 0:00:02]} e6 {[%emt 0:03:13]} 8. O-O {[%emt 0:00:10]} exd5 {[%emt 0:00:05]} 9. cxd5 {[%emt 0:00:03]} Na6 {[%emt 0:00:41]} 10. Ng3 {[%emt 0:03:02]} Nc7 {[%emt 0:00:19]} 11. Bf4 {[%emt 0:03:58]} a6 {[%emt 0:01:35]} 12. a4 {[%emt 0:01:56]} Rb8 {[%emt 0:00:47]} 13. Qd2 {[%emt 0:00:20]} b5 {[%emt 0:05:07]} 14. axb5 {[%emt 0:03:41]} axb5 {[%emt 0:00:05]} 15. b4 {[%emt 0:00:03]} c4 {[%emt 0:20:17]} 16. Bc2 {[%emt 0:03:39]} Ng4 {[%emt 0:02:20]} 17. h3 {[%emt 0:11:31]} Ne5 {[%emt 0:00:41]} 18. Bg5 {[%emt 0:00:03]} Qe8 {[%emt 0:15:37]} 19. Bh6 {[%emt 0:09:49]} f6 20. Bxg7 {[%emt 0:11:11]} Kxg7 {[%emt 0:21:32]} 21. f4 {[%emt 0:00:06]} Nf7 {[%emt 0:00:51]} 22. Nce2 {[%emt 0:05:10]} Bd7 {[%emt 0:01:50]} 23. Ra7 {[%emt 0:16:51]} Qc8 {[%emt 0:00:15]} 24. Rfa1 {[%emt 0:00:03]} Ra8 {[%emt 0:01:26]} 25. Rxa8 {[%emt 0:01:40]} Nxa8 {[%emt 0:00:04]} 26. Qd4 {[%emt 0:00:37]} Nc7 {[%emt 0:00:56]} 27. Qb6 {[%emt 0:02:20]} Na8 {[%emt 0:06:06]} 28. Qa7 {[%emt 0:01:22]} Re8 {[%emt 0:09:46]} 29. Nd4 {[%emt 0:00:31]} Kf8 {[%emt 0:00:15]} 30. Nge2 {[%emt 0:05:44]} Nc7 {[%emt 0:03:16]} 31. Qb6 {[%emt 0:03:09]} Na8 {[%emt 0:05:42]} 32. Qa7 {[%emt 0:00:03]} Nc7 {[%emt 0:00:28]} 33. Nc3 {[%emt 0:00:23]} Bxh3 {[%emt 0:00:53]} 34. f5 {[%emt 0:00:02]} gxf5 {[%emt 0:00:30]} 35. exf5 {[%emt 0:01:33]} Bg4 {[%emt 0:00:12]} 36. Ne6+ {[%emt 0:01:09]} Nxe6 {[%emt 0:00:04]} 37. dxe6 {[%emt 0:00:53]} Ng5 {[%emt 0:00:51]} 38. Qd4 {[%emt 0:00:41]} Qd8 {[%emt 0:01:05]} 39. Qxg4 {[%emt 0:02:06]} Qb6+ {[%emt 0:00:10]} 40. Kf1 {[%emt 0:04:25]} Qe3 {[%emt 0:00:13]} 41. Nxb5 {[%emt 0:30:52]} Qd2 {[%emt 0:08:43]} 42. Qd4 {[%emt 0:00:00]} 1-0

[Event "AUT-ch Open 2020"]
[Site "Graz"]
[Date "2020.02.15"]
[Round "2.20"]
[White "Valeanu, Eduard-Andrei"]
[Black "Skuhala, Barbara"]
[Result "1-0"]
[ECO "B50"]
[WhiteElo "2427"]
[BlackElo "2109"]
[Annotator "ChessBase"]
[PlyCount "59"]
[EventDate "2020.02.14"]
[EventType "swiss"]
[EventCountry "AUT"]
[SourceTitle "playchess.com"]
[Source "ChessBase"]
[SourceQuality "1"]
[TimeControl "40/5400+30:1800+30"]

1. e4 {[%emt 0:00:46]} c5 {[%emt 0:00:00]} 2. Nf3 {[%emt 0:00:39]} d6 {[%emt 0:00:00]} 3. Bc4 {[%emt 0:00:39]} e6 {[%emt 0:01:37]} 4. O-O {[%emt 0:00:56]} Nf6 {[%emt 0:01:18]} 5. Re1 {[%emt 0:00:38]} Be7 {[%emt 0:02:14]} 6. c3 {[%emt 0:00:14]} O-O {[%emt 0:01:18]} 7. Bb3 {[%emt 0:00:06]} d5 {[%emt 0:06:39]} 8. e5 {[%emt 0:00:08]} Ne8 {[%emt 0:00:20]} 9. d4 {[%emt 0:00:06]} cxd4 {[%emt 0:06:54]} 10. cxd4 {[%emt 0:00:05]} Nc6 {[%emt 0:00:36]} 11. Nc3 {[%emt 0:00:19]} a6 {[%emt 0:00:43]} 12. Bc2 {[%emt 0:05:50]} g6 {[%emt 0:03:30]} 13. Bh6 {[%emt 0:00:26]} Ng7 {[%emt 0:00:04]} 14. Rc1 {[%emt 0:01:17]} Bd7 {[%emt 0:12:07]} 15. Qd2 {[%emt 0:04:56]} f6 {[%emt 0:04:41]} 16. exf6 {[%emt 0:02:36]} Bxf6 {[%emt 0:01:27]} 17. Na4 {[%emt 0:05:45]} b6 {[%emt 0:02:04]} 18. h4 {[%emt 0:09:15]} Re8 {[%emt 0:18:18]} 19. Bg5 {[%emt 0:02:57]} Bxg5 {[%emt 0:05:24]} 20. Nxg5 {[%emt 0:00:15]} Rb8 {[%emt 0:01:15]} 21. Nf3 {[%emt 0:08:46]} Qf6 {[%emt 0:04:33]} 22. Nc3 {[%emt 0:03:22]} Nf5 {[%emt 0:08:39]} 23. Bxf5 {[%emt 0:00:34]} gxf5 {[%emt 0:00:37]} 24. Qf4 {[%emt 0:01:02]} Rb7 {[%emt 0:06:38]} 25. Re3 {[%emt 0:01:56]} Kh8 {[%emt 0:02:16]} 26. Ne2 {[%emt 0:03:43]} Qg7 {[%emt 0:04:42]} 27. Qd6 {[%emt 0:00:59]} Na5 {[%emt 0:00:50]} 28. Ne5 {[%emt 0:01:15]} Bb5 {[%emt 0:00:50]} 29. Nf4 {[%emt 0:02:41]} Qe7 {[%emt 0:01:53]} 30. Nfg6+ {[%emt 0:00:12]} 1-0

[Event "AUT-ch Open 2020"]
[Site "Graz"]
[Date "2020.02.15"]
[Round "2.21"]
[White "Gajek, Radoslaw"]
[Black "Ozturk, Kubra"]
[Result "1-0"]
[ECO "A06"]
[WhiteElo "2438"]
[BlackElo "2286"]
[Annotator "ChessBase"]
[PlyCount "91"]
[EventDate "2020.02.14"]
[EventType "swiss"]
[EventCountry "AUT"]
[SourceTitle "playchess.com"]
[Source "ChessBase"]
[SourceQuality "1"]
[TimeControl "40/5400+30:1800+30"]

1. Nf3 {[%emt 0:00:00]} d5 {[%emt 0:00:00]} 2. e3 {[%emt 0:00:00]} Nf6 {[%emt 0:00:19]} 3. c4 {[%emt 0:00:00]} e6 {[%emt 0:00:47]} 4. Nc3 {[%emt 0:01:13]} Be7 {[%emt 0:01:06]} 5. g4 {[%emt 0:03:43]} O-O {[%emt 0:06:41]} 6. g5 {[%emt 0:03:50]} Nh5 {[%emt 0:01:33]} 7. Ne5 {[%emt 0:14:53]} g6 {[%emt 0:00:40]} 8. Be2 {[%emt 0:04:57]} Bd6 {[%emt 0:42:42]} 9. d4 {[%emt 0:01:25]} Ng7 {[%emt 0:04:14]} 10. cxd5 {[%emt 0:00:21]} Bxe5 {[%emt 0:02:48]} 11. dxe5 {[%emt 0:00:06]} Qxg5 {[%emt 0:00:34]} 12. Qd4 {[%emt 0:05:21]} Nd7 {[%emt 0:11:05]} 13. b3 exd5 {[%emt 0:12:30]} 14. Ba3 {[%emt 0:05:38]} c5 15. Qxd5 {[%emt 0:00:57]} Re8 {[%emt 0:01:30]} 16. Ne4 {[%emt 0:04:04]} Qxe5 {[%emt 0:01:01]} 17. Qxe5 {[%emt 0:00:57]} Rxe5 {[%emt 0:00:57]} 18. Nd6 {[%emt 0:00:59]} Nb6 {[%emt 0:01:16]} 19. Bb2 {[%emt 0:00:56]} Rd5 {[%emt 0:01:44]} 20. Ne4 {[%emt 0:00:37]} Ne8 {[%emt 0:01:42]} 21. Rc1 {[%emt 0:00:19]} c4 {[%emt 0:02:06]} 22. bxc4 {[%emt 0:01:11]} Ra5 {[%emt 0:00:17]} 23. c5 {[%emt 0:03:35]} Rxa2 {[%emt 0:02:45]} 24. Bd4 {[%emt 0:00:39]} Na4 {[%emt 0:00:26]} 25. Bc4 {[%emt 0:00:23]} Ra3 {[%emt 0:00:16]} 26. Ng5 {[%emt 0:01:52]} Kf8 {[%emt 0:00:57]} 27. Nxf7 {[%emt 0:02:00]} Ke7 {[%emt 0:00:32]} 28. Ne5 {[%emt 0:01:47]} Be6 {[%emt 0:01:15]} 29. O-O {[%emt 0:04:07]} Rc8 {[%emt 0:00:54]} 30. c6 {[%emt 0:00:35]} b6 {[%emt 0:01:17]} 31. Ra1 {[%emt 0:09:46]} Rxa1 {[%emt 0:01:09]} 32. Rxa1 {[%emt 0:00:05]} Nc5 {[%emt 0:00:15]} 33. Rxa7+ {[%emt 0:03:25]} Rc7 {[%emt 0:00:01]} 34. Ra8 {[%emt 0:01:16]} Bxc4 {[%emt 0:00:33]} 35. Nxc4 {[%emt 0:00:08]} Rxc6 {[%emt 0:00:24]} 36. Nxb6 {[%emt 0:00:29]} Ne6 {[%emt 0:01:03]} 37. Nd5+ {[%emt 0:02:32]} Kd6 {[%emt 0:00:25]} 38. Nb4 {[%emt 0:00:51]} Rc1+ {[%emt 0:00:08]} 39. Kg2 {[%emt 0:00:04]} N8c7 {[%emt 0:00:24]} 40. Rb8 {[%emt 0:08:23]} Rb1 {[%emt 0:01:06]} 41. Rb6+ {[%emt 0:31:24]} Kd7 {[%emt 0:30:15]} 42. Be5 {[%emt 0:00:42]} Rd1 {[%emt 0:00:00]} 43. Bg3 {[%emt 0:00:00]} Rd2 {[%emt 0:00:00]} 44. h4 {[%emt 0:00:00]} Rd1 {[%emt 0:00:00]} 45. h5 {[%emt 0:00:00]} Rc1 {[%emt 0:00:00]} 46. Nd3 1-0

[Event "AUT-ch Open 2020"]
[Site "Graz"]
[Date "2020.02.15"]
[Round "2.22"]
[White "Ongut, Tamas Gunes"]
[Black "David, Alexandru-Vasile"]
[Result "0-1"]
[ECO "A46"]
[WhiteElo "2302"]
[BlackElo "2436"]
[Annotator "ChessBase"]
[PlyCount "66"]
[EventDate "2020.02.14"]
[EventType "swiss"]
[EventCountry "AUT"]
[SourceTitle "playchess.com"]
[Source "ChessBase"]
[SourceQuality "1"]
[TimeControl "40/5400+30:1800+30"]

1. d4 {[%emt 0:00:00]} Nf6 {[%emt 0:00:00]} 2. Nf3 {[%emt 0:00:00]} e6 {[%emt 0:00:10]} 3. g3 {[%emt 0:00:00]} b5 {[%emt 0:01:11]} 4. Bg2 {[%emt 0:00:15]} Bb7 {[%emt 0:00:14]} 5. O-O {[%emt 0:00:17]} Be7 {[%emt 0:00:16]} 6. Bg5 {[%emt 0:02:04]} O-O {[%emt 0:02:50]} 7. Nbd2 {[%emt 0:03:01]} a6 {[%emt 0:04:18]} 8. c4 {[%emt 0:09:45]} d6 {[%emt 0:00:54]} 9. Qc2 {[%emt 0:06:45]} h6 {[%emt 0:01:09]} 10. Bxf6 {[%emt 0:00:44]} Bxf6 {[%emt 0:00:04]} 11. Rad1 {[%emt 0:02:46]} g6 {[%emt 0:03:23]} 12. Ne1 {[%emt 0:09:16]} Bxg2 {[%emt 0:01:09]} 13. Nxg2 {[%emt 0:00:18]} c6 {[%emt 0:01:11]} 14. Nf3 {[%emt 0:07:16]} Nd7 {[%emt 0:03:25]} 15. e4 {[%emt 0:15:34]} Qe7 {[%emt 0:03:29]} 16. Ne3 {[%emt 0:05:07]} Bg7 {[%emt 0:03:03]} 17. Rfe1 {[%emt 0:06:25]} Rac8 {[%emt 0:01:21]} 18. b3 {[%emt 0:10:11]} b4 19. Qd3 a5 20. Kg2 c5 21. d5 e5 22. Nh4 Nf6 23. Qe2 Qd7 24. Qf3 a4 25. h3 h5 26. g4 Qd8 27. Rh1 Nxe4 28. Qxe4 Qxh4 29. Kf3 axb3 30. axb3 Ra8 31. gxh5 Qxe4+ 32. Kxe4 f5+ 33. Kf3 e4+ 0-1

[Event "AUT-ch Open 2020"]
[Site "Graz"]
[Date "2020.02.15"]
[Round "2.22"]
[White "Peycheva, Gergana"]
[Black "Higatsberger, Michael"]
[Result "1-0"]
[ECO "D42"]
[WhiteElo "2286"]
[BlackElo "2096"]
[Annotator "ChessBase"]
[PlyCount "45"]
[EventDate "2020.02.14"]
[EventType "swiss"]
[EventCountry "AUT"]
[SourceTitle "playchess.com"]
[Source "ChessBase"]
[SourceQuality "1"]
[TimeControl "40/5400+30:1800+30"]

1. d4 {[%emt 0:00:00]} d5 {[%emt 0:00:00]} 2. c4 {[%emt 0:00:00]} c5 {[%emt 0:00:00]} 3. cxd5 {[%emt 0:00:29]} Qxd5 {[%emt 0:00:01]} 4. e3 {[%emt 0:00:52]} cxd4 {[%emt 0:00:50]} 5. Nc3 {[%emt 0:00:29]} Qd8 {[%emt 0:03:11]} 6. exd4 {[%emt 0:00:39]} Nf6 {[%emt 0:00:26]} 7. Nf3 {[%emt 0:00:59]} e6 {[%emt 0:02:20]} 8. Bd3 {[%emt 0:01:41]} Be7 {[%emt 0:09:50]} 9. O-O {[%emt 0:02:36]} O-O {[%emt 0:01:06]} 10. Re1 {[%emt 0:01:52]} Nc6 {[%emt 0:02:18]} 11. a3 {[%emt 0:02:47]} Re8 {[%emt 0:18:16]} 12. Bc2 {[%emt 0:03:21]} g6 {[%emt 0:04:46]} 13. Qd3 {[%emt 0:05:14]} b6 {[%emt 0:05:54]} 14. Bh6 {[%emt 0:03:12]} Nd5 {[%emt 0:08:45]} 15. Rad1 {[%emt 0:10:19]} Nxc3 {[%emt 0:08:15]} 16. Qxc3 {[%emt 0:03:02]} Bd7 {[%emt 0:01:42]} 17. d5 {[%emt 0:05:33]} Bf6 {[%emt 0:00:12]} 18. Qd2 {[%emt 0:03:56]} exd5 {[%emt 0:03:42]} 19. Qxd5 {[%emt 0:02:08]} Rxe1+ {[%emt 0:00:41]} 20. Rxe1 {[%emt 0:12:40]} Ne7 {[%emt 0:05:28]} 21. Qd6 {[%emt 0:05:07]} Nf5 {[%emt 0:00:48]} 22. Bxf5 {[%emt 0:00:08]} Bxf5 {[%emt 0:00:07]} 23. Re8+ {[%emt 0:00:39]} 1-0

[Event "AUT-ch Open 2020"]
[Site "Graz"]
[Date "2020.02.15"]
[Round "2.23"]
[White "Maxion, Dirk"]
[Black "Neuschmied, Siegfried"]
[Result "0-1"]
[ECO "B08"]
[WhiteElo "2098"]
[BlackElo "2268"]
[Annotator "ChessBase"]
[PlyCount "106"]
[EventDate "2020.02.14"]
[EventType "swiss"]
[EventCountry "AUT"]
[SourceTitle "playchess.com"]
[Source "ChessBase"]
[SourceQuality "1"]
[TimeControl "40/5400+30:1800+30"]

1. e4 {[%emt 0:00:20]} g6 {[%emt 0:00:00]} 2. d4 {[%emt 0:00:25]} Bg7 {[%emt 0:00:24]} 3. Nf3 {[%emt 0:05:14]} d6 {[%emt 0:00:12]} 4. Nc3 {[%emt 0:00:56]} Nf6 {[%emt 0:05:59]} 5. Be2 {[%emt 0:01:01]} O-O {[%emt 0:00:44]} 6. O-O {[%emt 0:00:51]} c6 {[%emt 0:05:31]} 7. Re1 {[%emt 0:03:42]} Qc7 {[%emt 0:00:46]} 8. Bf4 {[%emt 0:04:01]} Nh5 {[%emt 0:11:51]} 9. Bg5 {[%emt 0:03:55]} h6 {[%emt 0:01:27]} 10. Be3 {[%emt 0:01:50]} Nd7 {[%emt 0:05:14]} 11. Qd2 {[%emt 0:03:19]} Kh7 {[%emt 0:01:33]} 12. Rad1 {[%emt 0:12:46]} Nhf6 {[%emt 0:02:42]} 13. h3 {[%emt 0:01:18]} b5 {[%emt 0:01:52]} 14. e5 {[%emt 0:03:18]} b4 {[%emt 0:05:41]} 15. Nb5 {[%emt 0:02:16]} cxb5 {[%emt 0:00:47]} 16. exf6 {[%emt 0:00:26]} Nxf6 {[%emt 0:00:30]} 17. Bxb5 {[%emt 0:08:09]} Bb7 {[%emt 0:06:45]} 18. Qe2 {[%emt 0:13:53]} a5 {[%emt 0:10:54]} 19. Bc1 {[%emt 0:01:49]} e6 {[%emt 0:01:21]} 20. Bd3 {[%emt 0:01:37]} Qc6 {[%emt 0:02:47]} 21. Qe3 {[%emt 0:03:11]} Ba6 {[%emt 0:03:33]} 22. Qf4 {[%emt 0:07:03]} Bxd3 {[%emt 0:01:35]} 23. cxd3 {[%emt 0:00:07]} Qd5 {[%emt 0:07:03]} 24. a3 {[%emt 0:03:11]} bxa3 {[%emt 0:02:45]} 25. bxa3 {[%emt 0:00:01]} g5 {[%emt 0:04:17]} 26. Qe3 {[%emt 0:02:07]} Kg8 {[%emt 0:03:51]} 27. h4 {[%emt 0:03:40]} gxh4 {[%emt 0:02:30]} 28. Nxh4 {[%emt 0:00:35]} Rfc8 {[%emt 0:02:56]} 29. Nf3 {[%emt 0:01:05]} Rc2 {[%emt 0:01:15]} 30. Qf4 {[%emt 0:00:53]} Rac8 {[%emt 0:00:55]} 31. Be3 {[%emt 0:00:33]} R2c3 {[%emt 0:03:33]} 32. Qh4 {[%emt 0:04:27]} Qh5 {[%emt 0:01:15]} 33. Qg3 {[%emt 0:00:01]} R3c6 {[%emt 0:02:23]} 34. Rb1 {[%emt 0:01:09]} Qg4 {[%emt 0:00:55]} 35. Qh2 {[%emt 0:00:01]} Qg6 {[%emt 0:00:27]} 36. Bf4 {[%emt 0:01:47]} Bf8 {[%emt 0:00:16]} 37. Rb5 {[%emt 0:00:55]} Ra6 {[%emt 0:00:17]} 38. Reb1 {[%emt 0:03:14]} Nd5 {[%emt 0:00:23]} 39. Bd2 {[%emt 0:00:19]} a4 {[%emt 0:00:39]} 40. Rb7 {[%emt 0:00:40]} Nc3 {[%emt 0:00:49]} 41. Re1 {[%emt 0:30:57]} Ra5 {[%emt 0:31:14]} 42. Qh3 {[%emt 0:00:00]} Bg7 {[%emt 0:00:00]} 43. g3 {[%emt 0:00:00]} Rh5 {[%emt 0:00:00]} 44. Qf1 {[%emt 0:00:00]} Qg4 {[%emt 0:00:00]} 45. Qg2 {[%emt 0:00:00]} Rf5 {[%emt 0:00:00]} 46. Nh4 {[%emt 0:00:00]} Rd5 {[%emt 0:00:00]} 47. Nf3 {[%emt 0:00:00]} Qf5 {[%emt 0:00:00]} 48. Re3 {[%emt 0:00:00]} Nb5 {[%emt 0:04:09]} 49. Re4 {[%emt 0:00:00]} Nxd4 {[%emt 0:00:00]} 50. Nxd4 {[%emt 0:02:28]} Rxd4 {[%emt 0:00:00]} 51. Bxh6 {[%emt 0:01:31]} Qd5 {[%emt 0:00:39]} 52. Bxg7 {[%emt 0:02:03]} Rc1+ {[%emt 0:00:43]} 53. Kh2 {[%emt 0:00:22]} Qh5+ {[%emt 0:00:21]} 0-1